[Event "Shanghai COITCT 2019"]
[Site "Shanghai"]
[Date "2019.09.15"]
[Round "2.7"]
[White "Xu, Zhihang"]
[Black "Nigmatov, Ortik"]
[Result "1-0"]
[ECO "E62"]
[WhiteElo "2506"]
[BlackElo "2482"]
[Annotator "ChessBase"]
[PlyCount "81"]
[EventDate "2019.09.15"]
[EventType "team-tourn"]
[EventCountry "CHN"]
[SourceTitle "playchess.com"]
[Source "ChessBase"]
[SourceQuality "1"]
[TimeControl "1500+10"]

1. c4 {[%emt 0:00:00]} Nf6 {[%emt 0:00:00]} 2. Nc3 {[%emt 0:00:11]} g6 {[%emt 0:00:00]} 3. g3 {[%emt 0:00:11]} Bg7 {[%emt 0:00:00]} 4. Bg2 {[%emt 0:00:01]} O-O {[%emt 0:00:00]} 5. d4 {[%emt 0:00:05]} d6 {[%emt 0:00:00]} 6. Nf3 {[%emt 0:00:02]} Nc6 {[%emt 0:00:01]} 7. O-O {[%emt 0:00:02]} e5 {[%emt 0:00:02]} 8. d5 {[%emt 0:00:26]} Nb8 {[%emt 0:00:22]} 9. Ne1 {[%emt 0:00:07]} a5 {[%emt 0:00:08]} 10. Nd3 {[%emt 0:00:12]} Na6 {[%emt 0:00:23]} 11. a3 {[%emt 0:00:37]} Nd7 {[%emt 0:01:42]} 12. e4 {[%emt 0:00:19]} Nac5 {[%emt 0:00:30]} 13. Be3 {[%emt 0:00:49]} b6 {[%emt 0:00:49]} 14. Nxc5 {[%emt 0:00:35]} bxc5 {[%emt 0:00:22]} 15. a4 {[%emt 0:01:13]} f5 {[%emt 0:00:24]} 16. Qd2 {[%emt 0:00:49]} Nb6 {[%emt 0:01:38]} 17. Qd3 {[%emt 0:00:02]} f4 {[%emt 0:00:04]} 18. Bd2 {[%emt 0:00:01]} f3 {[%emt 0:01:28]} 19. Bh1 {[%emt 0:00:01]} g5 {[%emt 0:01:13]} 20. Bxf3 {[%emt 0:01:38]} Nxc4 {[%emt 0:00:11]} 21. Bg2 {[%emt 0:00:02]} Nxd2 {[%emt 0:02:03]} 22. Qxd2 {[%emt 0:00:01]} Bd7 {[%emt 0:01:03]} 23. Ra3 {[%emt 0:00:25]} g4 {[%emt 0:02:04]} 24. Nb5 {[%emt 0:00:10]} Qb8 {[%emt 0:01:33]} 25. Rb3 {[%emt 0:00:30]} Rf6 {[%emt 0:00:59]} 26. Qe2 {[%emt 0:01:35]} Qd8 {[%emt 0:00:41]} 27. f3 {[%emt 0:00:48]} gxf3 {[%emt 0:00:03]} 28. Bxf3 {[%emt 0:00:01]} Rb8 {[%emt 0:00:08]} 29. Bg4 {[%emt 0:01:22]} c4 {[%emt 0:06:39]} 30. Rxf6 {[%emt 0:00:34]} Qxf6 {[%emt 0:02:55]} 31. Rc3 {[%emt 0:00:07]} Bxb5 {[%emt 0:01:11]} 32. axb5 {[%emt 0:00:02]} Rxb5 {[%emt 0:00:05]} 33. Rxc4 {[%emt 0:00:05]} Rb7 {[%emt 0:00:50]} 34. Kg2 {[%emt 0:00:40]} Kh8 {[%emt 0:00:05]} 35. Bc8 {[%emt 0:00:18]} Ra7 {[%emt 0:00:02]} 36. Rc3 {[%emt 0:00:31]} Qe7 {[%emt 0:00:30]} 37. Qb5 {[%emt 0:01:33]} Qd8 {[%emt 0:00:34]} 38. Qb8 {[%emt 0:00:20]} Ra6 {[%emt 0:00:08]} 39. Rxc7 {[%emt 0:00:02]} a4 {[%emt 0:00:15]} 40. Rxg7 {[%emt 0:01:10]} a3 {[%emt 0:00:10]} 41. Qb7 {[%emt 0:00:10]} 1-0

[Event "Shanghai COITCT 2019"]
[Site "Shanghai"]
[Date "2019.09.15"]
[Round "2.15"]
[White "Zarubitski, Viachaslau"]
[Black "Gholami, Aryan"]
[Result "0-1"]
[ECO "B22"]
[WhiteElo "2435"]
[BlackElo "2542"]
[Annotator "RC"]
[PlyCount "144"]
[EventDate "2019.09.15"]
[EventType "team-tourn"]
[EventCountry "CHN"]
[SourceTitle "playchess.com"]
[Source "ChessBase"]
[SourceQuality "1"]
[TimeControl "1500+10"]

1. e4 {[%emt 0:00:00]} c5 {[%emt 0:00:00]} 2. Nf3 {[%emt 0:00:00]} e6 {[%emt 0:00:00]} 3. c3 {[%emt 0:00:03]} Nf6 {[%emt 0:00:00]} 4. e5 {[%emt 0:00:01]} Nd5 {[%emt 0:00:00]} 5. d4 {[%emt 0:00:01]} cxd4 {[%emt 0:00:00]} 6. cxd4 {[%emt 0:00:01]} d6 {[%emt 0:00:00]} 7. Bc4 {[%emt 0:00:03]} Nb6 {[%emt 0:00:00]} 8. Bd3 {[%emt 0:00:15]} dxe5 {[%emt 0:00:00]} 9. dxe5 {[%emt 0:00:03]} Na6 {[%emt 0:00:01]} 10. O-O {[%emt 0:00:10]} Nc5 {[%emt 0:00:19]} 11. Be2 {[%emt 0:00:08]} Nd5 {[%emt 0:00:45]} 12. Qd4 {[%emt 0:04:23]} Bd7 {[%emt 0:00:02]} 13. Nc3 {[%emt 0:01:56]} Nxc3 {[%emt 0:00:54]} 14. Qxc3 {[%emt 0:00:13]} Be7 {[%emt 0:00:28]} 15. Be3 {[%emt 0:02:59]} Rc8 {[%emt 0:00:13]} 16. Rfd1 {[%emt 0:00:42]} O-O {[%emt 0:01:48]} 17. Qb4 {[%emt 0:05:16]} Qc7 {[%emt 0:03:59]} 18. Rac1 {[%emt 0:00:57]} Rfd8 {[%emt 0:00:02]} 19. Qa3 {[%emt 0:01:28]} a5 {[%emt 0:00:20]} 20. b4 {[%emt 0:05:10]} axb4 {[%emt 0:00:19]} 21. Qxb4 {[%emt 0:00:05]} b6 {[%emt 0:00:05]} 22. Rb1 {[%emt 0:01:26]} Rb8 {[%emt 0:00:53]} 23. Bb5 {[%emt 0:00:35]} Bc8 {[%emt 0:02:10]} 24. Rxd8+ {[%emt 0:00:38]} Qxd8 {[%emt 0:00:02]} 25. Nd4 {[%emt 0:01:37]} Bb7 {[%emt 0:00:13]} 26. Bc6 {[%emt 0:00:17]} Bc8 {[%emt 0:05:21]} 27. Bb5 {[%emt 0:00:34]} Bd7 {[%emt 0:02:13]} 28. Bxd7 {[%emt 0:00:07]} Qxd7 {[%emt 0:00:01]} 29. Qb5 {[%emt 0:00:07]} Bf8 {[%emt 0:00:20]} 30. Qc6 {[%emt 0:00:27]} Qa7 {[%emt 0:00:28]} 31. Rb2 {[%emt 0:00:15]} Nd3 {[%emt 0:00:58]} 32. Re2 {[%emt 0:00:07]} Qa6 {[%emt 0:01:26]} 33. Qe4 {[%emt 0:00:13]} Nb4 {[%emt 0:01:20]} 34. Qb1 {[%emt 0:00:11]} Nd5 {[%emt 0:00:16]} 35. Qb5 {[%emt 0:00:10]} Qa3 {[%emt 0:00:52]} 36. Qb3 {[%emt 0:00:02]} Ra8 {[%emt 0:00:44]} 37. h3 {[%emt 0:00:14]} h6 {[%emt 0:01:28]} 38. Nb5 {[%emt 0:00:13]} Qxb3 {[%emt 0:00:03]} 39. axb3 {[%emt 0:00:01]} Ra1+ {[%emt 0:00:02]} 40. Kh2 {[%emt 0:00:02]} Rb1 {[%emt 0:00:05]} 41. Bd4 {[%emt 0:00:28]} Rxb3 {[%emt 0:00:06]} 42. Rb2 {[%emt 0:00:00]} Rd3 {[%emt 0:00:20]} 43. Rc2 {[%emt 0:00:08]} Rb3 {[%emt 0:00:33]} 44. Rb2 {[%emt 0:00:13]} Rxb2 {[%emt 0:00:20]} 45. Bxb2 {[%emt 0:00:00]} Bc5 {[%emt 0:00:03]} 46. Kg3 {[%emt 0:00:03]} Nb4 {[%emt 0:00:04]} 47. f4 {[%emt 0:00:29]} Nd3 {[%emt 0:00:49]} 48. Bc3 {[%emt 0:00:14]} Kh7 {[%emt 0:00:14]} 49. Kf3 {[%emt 0:00:01]} g5 {[%emt 0:00:04]} 50. fxg5 {[%emt 0:00:20]} hxg5 {[%emt 0:00:01]} 51. g3 {[%emt 0:00:06]} Kg6 {[%emt 0:00:02]} 52. g4 {[%emt 0:00:05]} Nf2 {[%emt 0:00:14]} 53. Kg3 {[%emt 0:00:17]} Ne4+ {[%emt 0:00:02]} 54. Kf3 {[%emt 0:00:00]} Nxc3 {[%emt 0:00:02]} 55. Nxc3 {[%emt 0:00:01]} Bd4 {[%emt 0:00:02]} 56. Nb5 {[%emt 0:00:11]} Bxe5 {[%emt 0:00:02]} 57. Ke4 {[%emt 0:00:05]} Bh2 {[%emt 0:00:28]} 58. Nd4 {[%emt 0:00:10]} Kf6 {[%emt 0:00:07]} 59. Nf3 {[%emt 0:00:23]} Bg3 {[%emt 0:00:03]} 60. Kd4 {[%emt 0:00:09]} Bf4 {[%emt 0:00:46]} 61. Kc4 {[%emt 0:00:24]} Ke7 {[%emt 0:00:25]} 62. Kb5 {[%emt 0:00:03]} Be3 {[%emt 0:00:01]} 63. Kc6 {[%emt 0:00:07]} f6 {[%emt 0:00:03]} 64. Ne1 {[%emt 0:00:14]} f5 {[%emt 0:00:02]} 65. Nc2 {[%emt 0:00:16]} Bc5 {[%emt 0:00:03]} 66. Ne1 {[%emt 0:00:01]} Kf6 {[%emt 0:00:14]} 67. Nf3 {[%emt 0:00:06]} e5 {[%emt 0:00:06]} 68. Kd5 {[%emt 0:00:10]} e4 {[%emt 0:00:10]} 69. Ne1 {[%emt 0:00:14]} Bf2 {[%emt 0:00:21]} 70. Nc2 {[%emt 0:00:03]} b5 {[%emt 0:00:02]} 71. h4 {[%emt 0:00:19]} gxh4 {[%emt 0:00:08]} 72. gxf5 {[%emt 0:00:04]} Kxf5 {[%emt 0:00:02] Kd4} 0-1

[Event "Shanghai COITCT 2019"]
[Site "Shanghai"]
[Date "2019.09.15"]
[Round "3.3"]
[White "Gholami, Aryan"]
[Black "Antonova, Nadezhda"]
[Result "1-0"]
[ECO "A30"]
[WhiteElo "2542"]
[BlackElo "1930"]
[Annotator "RC"]
[PlyCount "65"]
[EventDate "2019.09.15"]
[EventType "team-tourn"]
[EventCountry "CHN"]
[SourceTitle "playchess.com"]
[Source "ChessBase"]
[SourceQuality "1"]
[TimeControl "1500+10"]

1. Nf3 {[%emt 0:00:00]} Nf6 {[%emt 0:00:06]} 2. g3 {[%emt 0:00:02]} b6 {[%emt 0:00:11]} 3. Bg2 {[%emt 0:00:01]} Bb7 {[%emt 0:00:01]} 4. O-O {[%emt 0:00:03]} c5 {[%emt 0:00:23]} 5. c4 {[%emt 0:00:05]} e6 {[%emt 0:00:14]} 6. Nc3 {[%emt 0:00:01]} d5 {[%emt 0:00:40]} 7. cxd5 {[%emt 0:00:36]} Nxd5 {[%emt 0:00:57]} 8. d4 {[%emt 0:03:40]} Be7 {[%emt 0:03:51]} 9. dxc5 {[%emt 0:00:21]} Nxc3 {[%emt 0:02:09]} 10. Qxd8+ {[%emt 0:00:27]} Bxd8 {[%emt 0:01:00]} 11. bxc3 {[%emt 0:00:02]} bxc5 {[%emt 0:00:05]} 12. Bf4 {[%emt 0:02:18]} Nd7 {[%emt 0:11:33]} 13. Rfd1 {[%emt 0:00:09]} Bc6 {[%emt 0:01:16]} 14. Bd6 {[%emt 0:01:49]} Rc8 {[%emt 0:01:19]} 15. Nd2 {[%emt 0:03:23]} Be7 {[%emt 0:01:29]} 16. Nc4 {[%emt 0:00:21]} Bxg2 {[%emt 0:01:13]} 17. Kxg2 {[%emt 0:00:02]} Nb6 {[%emt 0:00:06]} 18. Na5 {[%emt 0:00:34]} Nd5 {[%emt 0:00:34]} 19. c4 {[%emt 0:00:39]} Nc3 {[%emt 0:00:44]} 20. Rd3 {[%emt 0:00:43]} Bxd6 {[%emt 0:00:13]} 21. Rxd6 {[%emt 0:00:04]} Nxe2 {[%emt 0:00:12]} 22. Rb1 {[%emt 0:00:16]} O-O {[%emt 0:00:12]} 23. Rb7 {[%emt 0:00:02]} Nc3 {[%emt 0:00:04]} 24. Ra6 {[%emt 0:02:05]} Nxa2 {[%emt 0:00:13]} 25. Nc6 {[%emt 0:00:45]} Nb4 {[%emt 0:00:11]} 26. Ne7+ {[%emt 0:00:02]} Kh8 {[%emt 0:00:02]} 27. Raxa7 {[%emt 0:00:15]} Nc6 {[%emt 0:00:20]} 28. Nxc8 {[%emt 0:00:04]} Rxc8 {[%emt 0:00:02]} 29. Ra6 {[%emt 0:00:30]} Ne5 {[%emt 0:00:18]} 30. Rc7 {[%emt 0:00:06]} Rb8 {[%emt 0:00:10]} 31. Rxc5 {[%emt 0:00:07]} Nd3 {[%emt 0:00:06]} 32. Rc7 {[%emt 0:00:08]} Rf8 {[%emt 0:00:15]} 33. Rxf7 {[%emt 0:00:06]} 1-0

[Event "Shanghai COITCT 2019"]
[Site "Shanghai"]
[Date "2019.09.16"]
[Round "4.4"]
[White "Xu, Zhihang"]
[Black "Lodhi, Mahmood"]
[Result "1-0"]
[ECO "A29"]
[WhiteElo "2506"]
[BlackElo "2349"]
[Annotator "RC"]
[PlyCount "93"]
[EventDate "2019.09.15"]
[EventType "team-tourn"]
[EventCountry "CHN"]
[SourceTitle "playchess.com"]
[Source "ChessBase"]
[SourceQuality "1"]
[TimeControl "1500+10"]

1. c4 {[%emt 0:00:00]} e5 {[%emt 0:00:00]} 2. Nc3 {[%emt 0:00:00]} Nf6 {[%emt 0:00:00]} 3. g3 {[%emt 0:00:10]} d5 {[%emt 0:00:02]} 4. cxd5 {[%emt 0:00:02]} Nxd5 {[%emt 0:00:02]} 5. Bg2 {[%emt 0:00:02]} Be6 {[%emt 0:00:12]} 6. Nf3 {[%emt 0:00:39]} Nc6 {[%emt 0:00:03]} 7. Ng5 {[%emt 0:01:37]} Nxc3 {[%emt 0:00:43]} 8. Nxe6 {[%emt 0:00:23]} Nxd1 {[%emt 0:00:19]} 9. Nxd8 {[%emt 0:00:03]} Nxd8 {[%emt 0:02:39]} 10. Kxd1 {[%emt 0:00:02]} Bc5 {[%emt 0:00:06]} 11. f4 {[%emt 0:02:30]} f6 {[%emt 0:01:39]} 12. Rf1 {[%emt 0:01:35]} c6 {[%emt 0:00:13]} 13. e3 {[%emt 0:00:22]} Nf7 {[%emt 0:02:13]} 14. b4 {[%emt 0:01:03]} Bb6 {[%emt 0:00:56]} 15. Bb2 {[%emt 0:00:34]} Rd8 {[%emt 0:02:51]} 16. Kc2 {[%emt 0:00:08]} Ke7 {[%emt 0:00:53]} 17. Bc3 {[%emt 0:00:15]} Rd7 {[%emt 0:00:59]} 18. a4 {[%emt 0:00:03]} a6 {[%emt 0:00:05]} 19. Bh3 {[%emt 0:01:34]} Rd5 {[%emt 0:00:17]} 20. fxe5 {[%emt 0:00:23]} Nxe5 {[%emt 0:00:29]} 21. Bg2 {[%emt 0:00:04]} Rd7 {[%emt 0:00:22]} 22. Rf4 {[%emt 0:00:03]} Rhd8 {[%emt 0:01:07]} 23. Raf1 {[%emt 0:00:04]} Ng6 {[%emt 0:00:50]} 24. Re4+ {[%emt 0:00:51]} Kf7 {[%emt 0:00:07]} 25. h4 {[%emt 0:00:47]} Ne7 {[%emt 0:00:27]} 26. Ref4 {[%emt 0:01:14]} Nd5 {[%emt 0:00:09]} 27. Bxd5+ {[%emt 0:00:01]} Rxd5 {[%emt 0:00:01]} 28. e4 {[%emt 0:01:02]} Rd3 {[%emt 0:00:47]} 29. g4 {[%emt 0:01:06]} Bc7 {[%emt 0:01:27]} 30. Rf5 {[%emt 0:01:09]} Ke6 {[%emt 0:00:34]} 31. g5 {[%emt 0:00:02]} fxg5 {[%emt 0:01:31]} 32. hxg5 {[%emt 0:00:02]} R3d7 {[%emt 0:00:32]} 33. Rh1 {[%emt 0:00:33]} Rh8 {[%emt 0:00:38]} 34. b5 {[%emt 0:00:01]} axb5 {[%emt 0:00:06]} 35. axb5 {[%emt 0:00:02]} Bb6 {[%emt 0:02:07]} 36. Re5+ {[%emt 0:01:08]} Kd6 {[%emt 0:00:24]} 37. Kb3 {[%emt 0:00:16]} Kc7 {[%emt 0:00:09]} 38. Kc4 {[%emt 0:00:04]} g6 {[%emt 0:01:10]} 39. Re6 {[%emt 0:01:18]} cxb5+ {[%emt 0:01:29]} 40. Kxb5 {[%emt 0:00:51]} Bd4 {[%emt 0:00:02]} 41. Bb4 {[%emt 0:00:19]} b6 {[%emt 0:00:57]} 42. Rc6+ {[%emt 0:00:58]} Kb7 {[%emt 0:00:02]} 43. Rd6 {[%emt 0:00:02]} Rxd6 {[%emt 0:01:23]} 44. Bxd6 {[%emt 0:00:02]} Kc8 {[%emt 0:00:42]} 45. Kc6 {[%emt 0:00:02]} Kd8 {[%emt 0:00:09]} 46. e5 {[%emt 0:00:17]} Ke8 {[%emt 0:00:23]} 47. e6 {[%emt 0:00:24]} 1-0

[Event "Shanghai COITCT 2019"]
[Site "Shanghai"]
[Date "2019.09.16"]
[Round "4.11"]
[White "Kurbonboeva, Sarvinoz"]
[Black "Zhigalko, Sergei"]
[Result "0-1"]
[ECO "E20"]
[WhiteElo "2262"]
[BlackElo "2574"]
[Annotator "RC"]
[PlyCount "104"]
[EventDate "2019.09.15"]
[EventType "team-tourn"]
[EventCountry "CHN"]
[SourceTitle "playchess.com"]
[Source "ChessBase"]
[SourceQuality "1"]
[TimeControl "1500+10"]

1. d4 {[%emt 0:00:00]} Nf6 {[%emt 0:00:00]} 2. c4 {[%emt 0:00:00]} e6 {[%emt 0:00:00]} 3. Nc3 {[%emt 0:00:00]} Bb4 {[%emt 0:00:01]} 4. g3 {[%emt 0:00:00]} O-O {[%emt 0:01:08]} 5. Bg2 {[%emt 0:00:03]} d6 {[%emt 0:01:44]} 6. Qc2 {[%emt 0:02:22]} e5 {[%emt 0:00:57]} 7. d5 {[%emt 0:01:26]} c6 {[%emt 0:01:54]} 8. Bd2 {[%emt 0:04:27]} Bxc3 {[%emt 0:03:29]} 9. Bxc3 {[%emt 0:00:56]} cxd5 {[%emt 0:00:02]} 10. cxd5 {[%emt 0:00:02]} b6 {[%emt 0:00:08]} 11. e4 {[%emt 0:01:29]} Nbd7 {[%emt 0:00:28]} 12. Ne2 {[%emt 0:00:05]} Ba6 {[%emt 0:00:09]} 13. O-O {[%emt 0:00:13]} Rc8 {[%emt 0:01:17]} 14. Rad1 {[%emt 0:01:59]} Nc5 {[%emt 0:00:10]} 15. Rfe1 {[%emt 0:00:06]} Qd7 {[%emt 0:00:14]} 16. f4 {[%emt 0:01:19]} Na4 {[%emt 0:03:22]} 17. fxe5 {[%emt 0:00:02]} dxe5 {[%emt 0:00:07]} 18. Qd2 {[%emt 0:00:02]} Bxe2 {[%emt 0:00:07]} 19. Rxe2 {[%emt 0:00:01]} Nxc3 {[%emt 0:00:03]} 20. bxc3 {[%emt 0:00:00]} Ne8 {[%emt 0:01:54]} 21. Qg5 {[%emt 0:07:06]} Qd6 {[%emt 0:00:05]} 22. Rc1 {[%emt 0:00:37]} Rc4 {[%emt 0:00:14]} 23. Rec2 {[%emt 0:02:59]} Nf6 {[%emt 0:00:26]} 24. Qe3 {[%emt 0:00:49]} Rfc8 {[%emt 0:01:17]} 25. h3 {[%emt 0:01:05]} Qa3 {[%emt 0:00:27]} 26. Kh2 {[%emt 0:01:03]} Qc5 {[%emt 0:02:38]} 27. Qd3 {[%emt 0:00:19]} Ne8 {[%emt 0:00:13]} 28. Bf1 {[%emt 0:00:47]} Nd6 {[%emt 0:00:06]} 29. Bg2 {[%emt 0:00:16]} b5 {[%emt 0:00:24]} 30. h4 {[%emt 0:00:09]} Qa3 {[%emt 0:00:59]} 31. Qe3 {[%emt 0:00:15]} h6 {[%emt 0:00:22]} 32. Qf3 {[%emt 0:00:09]} Rxe4 {[%emt 0:01:11]} 33. Qh5 {[%emt 0:00:02]} Re3 {[%emt 0:00:12]} 34. Qg4 {[%emt 0:00:17]} Qc5 {[%emt 0:02:12]} 35. Qb4 {[%emt 0:00:08]} h5 {[%emt 0:00:56]} 36. a4 {[%emt 0:00:13]} a6 {[%emt 0:00:48]} 37. axb5 {[%emt 0:00:02]} axb5 {[%emt 0:00:02]} 38. Qxc5 {[%emt 0:00:18]} Rxc5 {[%emt 0:00:01]} 39. Bh3 {[%emt 0:00:13]} g6 {[%emt 0:00:27]} 40. g4 {[%emt 0:00:03]} hxg4 {[%emt 0:00:09]} 41. Bxg4 {[%emt 0:00:01]} Rxd5 {[%emt 0:00:06]} 42. h5 {[%emt 0:00:04]} gxh5 {[%emt 0:00:20]} 43. Bxh5 {[%emt 0:00:01]} Kf8 {[%emt 0:00:40]} 44. Bg4 {[%emt 0:00:26]} Rc5 {[%emt 0:00:13]} 45. Kg2 {[%emt 0:00:15]} Ke7 {[%emt 0:00:03]} 46. Bf3 {[%emt 0:00:07]} e4 {[%emt 0:00:08]} 47. Be2 {[%emt 0:00:08]} f5 {[%emt 0:00:32]} 48. Kf2 {[%emt 0:00:22]} f4 {[%emt 0:00:03]} 49. Bg4 {[%emt 0:00:11]} Rg3 {[%emt 0:00:07]} 50. Be2 {[%emt 0:00:09]} e3+ {[%emt 0:00:05]} 51. Kf1 {[%emt 0:00:04]} f3 {[%emt 0:00:05]} 52. Bd3 {[%emt 0:00:03]} Rh5 {[%emt 0:00:02]} 0-1

[Event "Shanghai COITCT 2019"]
[Site "Shanghai"]
[Date "2019.09.17"]
[Round "6.1"]
[White "Karimov, Alisher"]
[Black "Xu, Zhihang"]
[Result "0-1"]
[ECO "D30"]
[WhiteElo "2251"]
[BlackElo "2506"]
[Annotator "ChessBase"]
[PlyCount "83"]
[EventDate "2019.09.15"]
[EventType "team-tourn"]
[EventCountry "CHN"]
[SourceTitle "playchess.com"]
[Source "ChessBase"]
[SourceQuality "1"]
[TimeControl "1500+10"]

1. d4 {[%emt 0:00:00]} Nf6 {[%emt 0:00:00]} 2. c4 {[%emt 0:00:00]} e6 {[%emt 0:00:00]} 3. g3 {[%emt 0:00:06]} d5 {[%emt 0:00:05]} 4. Nf3 {[%emt 0:00:11]} dxc4 {[%emt 0:00:09]} 5. Qa4+ {[%emt 0:00:21]} c6 {[%emt 0:00:02]} 6. Qxc4 {[%emt 0:00:04]} b5 {[%emt 0:00:01]} 7. Qc2 {[%emt 0:00:04]} Bb7 {[%emt 0:00:04]} 8. Bg2 {[%emt 0:00:03]} Nbd7 {[%emt 0:00:03]} 9. O-O {[%emt 0:00:04]} Be7 {[%emt 0:00:16]} 10. Nc3 {[%emt 0:00:44]} O-O {[%emt 0:00:27]} 11. Ne5 {[%emt 0:02:10]} Rc8 {[%emt 0:01:11]} 12. Rd1 {[%emt 0:00:46]} a6 {[%emt 0:00:22]} 13. a4 {[%emt 0:01:26]} Nxe5 {[%emt 0:02:09]} 14. dxe5 {[%emt 0:00:01]} Nd5 {[%emt 0:00:06]} 15. Ne4 {[%emt 0:07:02]} Qc7 {[%emt 0:01:04]} 16. Bg5 {[%emt 0:02:40]} Bxg5 {[%emt 0:02:39]} 17. Nxg5 {[%emt 0:00:02]} g6 {[%emt 0:00:01]} 18. Qe4 {[%emt 0:00:51]} h6 {[%emt 0:00:27]} 19. Nf3 {[%emt 0:00:34]} Qe7 {[%emt 0:00:12]} 20. Rac1 {[%emt 0:01:18]} Rfd8 {[%emt 0:00:14]} 21. h4 {[%emt 0:02:47]} c5 {[%emt 0:00:38]} 22. Nh2 {[%emt 0:00:50]} h5 {[%emt 0:00:13]} 23. axb5 {[%emt 0:02:06]} axb5 {[%emt 0:00:01]} 24. Nf3 {[%emt 0:00:28]} Nb6 {[%emt 0:03:13]} 25. Rxd8+ {[%emt 0:01:08]} Rxd8 {[%emt 0:00:03]} 26. Qc2 {[%emt 0:00:04]} Bxf3 {[%emt 0:00:18]} 27. Bxf3 {[%emt 0:00:05]} c4 {[%emt 0:00:09]} 28. Kg2 {[%emt 0:00:54]} Qc7 {[%emt 0:01:50]} 29. Qc3 {[%emt 0:00:37]} Nd5 {[%emt 0:02:59]} 30. Qd4 {[%emt 0:00:02]} Ne7 {[%emt 0:00:27]} 31. Qf4 {[%emt 0:00:04]} Nf5 {[%emt 0:00:19]} 32. Be4 {[%emt 0:01:06]} Rd4 {[%emt 0:00:38]} 33. e3 {[%emt 0:00:22]} Rd2 {[%emt 0:00:10]} 34. Bxf5 {[%emt 0:00:26]} exf5 {[%emt 0:00:01]} 35. b3 {[%emt 0:00:35]} Qc6+ {[%emt 0:00:56]} 36. Kg1 {[%emt 0:00:28]} c3 {[%emt 0:00:06]} 37. e6 {[%emt 0:00:13]} c2 {[%emt 0:00:18]} 38. exf7+ {[%emt 0:00:21]} Kxf7 {[%emt 0:00:07]} 39. e4 {[%emt 0:00:01]} Rd1+ {[%emt 0:00:05]} 40. Kh2 {[%emt 0:00:09]} Rxc1 {[%emt 0:00:29]} 41. Qxc1 {[%emt 0:00:03]} Qxe4 {[%emt 0:00:10]} 42. Qh6 {[%emt 0:00:34]} 0-1

[Event "Shanghai COITCT 2019"]
[Site "Shanghai"]
[Date "2019.09.17"]
[Round "6.2"]
[White "Ma, Zhonghan"]
[Black "Kabilov, Amin"]
[Result "1/2-1/2"]
[ECO "B06"]
[WhiteElo "2485"]
[BlackElo "2199"]
[Annotator "ChessBase"]
[PlyCount "81"]
[EventDate "2019.09.15"]
[EventType "team-tourn"]
[EventCountry "CHN"]
[SourceTitle "playchess.com"]
[Source "ChessBase"]
[SourceQuality "1"]
[TimeControl "1500+10"]

1. d4 {[%emt 0:00:00]} d6 {[%emt 0:00:00]} 2. e4 {[%emt 0:00:25]} g6 {[%emt 0:00:02]} 3. Nf3 {[%emt 0:00:04]} Bg7 {[%emt 0:00:01]} 4. Be2 {[%emt 0:00:03]} a6 {[%emt 0:00:12]} 5. O-O {[%emt 0:00:05]} Nd7 {[%emt 0:00:20]} 6. Nc3 {[%emt 0:00:29]} e6 {[%emt 0:00:07]} 7. Bf4 {[%emt 0:01:23]} Ne7 {[%emt 0:00:03]} 8. Qd2 {[%emt 0:00:22]} h6 {[%emt 0:00:02]} 9. e5 {[%emt 0:00:47]} d5 {[%emt 0:00:28]} 10. Bd3 {[%emt 0:00:18]} c5 {[%emt 0:00:22]} 11. dxc5 {[%emt 0:04:03]} Nxc5 {[%emt 0:01:35]} 12. b4 {[%emt 0:03:39]} Nxd3 {[%emt 0:00:17]} 13. cxd3 {[%emt 0:00:02]} g5 {[%emt 0:00:37]} 14. Be3 {[%emt 0:00:08]} g4 {[%emt 0:02:49]} 15. Nd4 {[%emt 0:00:07]} Bxe5 {[%emt 0:00:08]} 16. f4 {[%emt 0:00:03]} Bf6 {[%emt 0:01:13]} 17. Rac1 {[%emt 0:03:37]} Bd7 {[%emt 0:02:16]} 18. Nce2 {[%emt 0:01:54]} h5 {[%emt 0:00:23]} 19. f5 {[%emt 0:02:12]} e5 {[%emt 0:00:18]} 20. Bg5 {[%emt 0:00:03]} Nc6 {[%emt 0:05:35]} 21. Bxf6 {[%emt 0:00:16]} Qxf6 {[%emt 0:00:02]} 22. Nxc6 {[%emt 0:00:17]} Bxc6 {[%emt 0:00:11]} 23. d4 {[%emt 0:00:13]} e4 {[%emt 0:02:45]} 24. Rf2 {[%emt 0:03:23]} Kd7 {[%emt 0:00:11]} 25. Nf4 {[%emt 0:00:38]} h4 {[%emt 0:03:07]} 26. Rc5 {[%emt 0:01:40]} g3 {[%emt 0:00:22]} 27. Rf1 {[%emt 0:00:38]} h3 {[%emt 0:00:38]} 28. Nxh3 {[%emt 0:00:54]} Rag8 {[%emt 0:00:27]} 29. Rc3 {[%emt 0:00:45]} gxh2+ {[%emt 0:00:34]} 30. Kxh2 {[%emt 0:00:11]} Rg4 {[%emt 0:02:08]} 31. Rf2 {[%emt 0:00:44]} Rhg8 {[%emt 0:00:19]} 32. Qe3 {[%emt 0:00:29]} Qh4 {[%emt 0:00:31]} 33. Rcc2 {[%emt 0:00:18]} Rg3 {[%emt 0:00:16]} 34. Qf4 {[%emt 0:00:01]} R8g4 {[%emt 0:00:04]} 35. Qe5 {[%emt 0:00:01]} f6 {[%emt 0:02:13]} 36. Qe6+ {[%emt 0:00:01]} Kc7 37. Rxc6+ {[%emt 0:00:18]} bxc6 {[%emt 0:00:03]} 38. Qe7+ {[%emt 0:00:01]} Kc8 {[%emt 0:00:17]} 39. Qe8+ {[%emt 0:00:02]} Kc7 {[%emt 0:00:02]} 40. Qe7+ {[%emt 0:00:01]} Kc8 {[%emt 0:00:11]} 41. Qe8+ {[%emt 0:00:01]} 1/2-1/2

[Event "Shanghai COITCT 2019"]
[Site "Shanghai"]
[Date "2019.09.17"]
[Round "6.3"]
[White "Antonova, Nadezhda"]
[Black "Mu, Ke"]
[Result "0-1"]
[ECO "D45"]
[WhiteElo "1930"]
[BlackElo "2414"]
[Annotator "NA"]
[PlyCount "55"]
[EventDate "2019.09.15"]
[EventType "team-tourn"]
[EventCountry "CHN"]
[SourceTitle "playchess.com"]
[Source "ChessBase"]
[SourceQuality "1"]
[TimeControl "1500+10"]

1. Nf3 {[%emt 0:00:00]} d5 {[%emt 0:00:00]} 2. d4 {[%emt 0:00:00]} Nf6 {[%emt 0:00:04]} 3. e3 {[%emt 0:00:09]} c6 {[%emt 0:00:14]} 4. c4 {[%emt 0:00:18]} e6 {[%emt 0:00:11]} 5. Nc3 {[%emt 0:00:41]} Nbd7 {[%emt 0:00:02]} 6. cxd5 {[%emt 0:00:53]} exd5 {[%emt 0:00:05]} 7. Bd3 {[%emt 0:00:09]} Bd6 {[%emt 0:00:07]} 8. O-O {[%emt 0:00:11]} O-O {[%emt 0:00:25]} 9. Qc2 {[%emt 0:00:42]} Re8 {[%emt 0:00:42]} 10. Bd2 {[%emt 0:02:30]} Qe7 {[%emt 0:01:18]} 11. Rfc1 {[%emt 0:02:34]} Ne4 {[%emt 0:00:35]} 12. a3 {[%emt 0:00:45]} Ndf6 {[%emt 0:01:03]} 13. h3 {[%emt 0:02:52]} h6 {[%emt 0:01:57]} 14. b4 {[%emt 0:00:38]} a6 {[%emt 0:00:06]} 15. Na4 {[%emt 0:00:34]} Bf5 {[%emt 0:00:47]} 16. Nc5 {[%emt 0:00:35]} Rac8 {[%emt 0:00:52]} 17. Bc3 {[%emt 0:01:54]} Bh7 {[%emt 0:01:08]} 18. Rab1 {[%emt 0:03:51]} Rc7 {[%emt 0:00:05]} 19. a4 {[%emt 0:00:23]} g5 {[%emt 0:00:17]} 20. Qe2 {[%emt 0:06:16]} h5 {[%emt 0:03:56]} 21. Bxe4 {[%emt 0:01:33]} Nxe4 {[%emt 0:00:03]} 22. Nxe4 {[%emt 0:00:24]} Bxe4 {[%emt 0:00:10]} 23. Rb2 {[%emt 0:00:08]} g4 {[%emt 0:02:41]} 24. hxg4 {[%emt 0:00:09]} hxg4 {[%emt 0:00:01]} 25. Ne5 {[%emt 0:00:11]} Bxe5 {[%emt 0:00:02]} 26. dxe5 {[%emt 0:00:03]} Qh4 {[%emt 0:00:04]} 27. Bd4 {[%emt 0:00:52]} Re6 {[%emt 0:00:03]} 28. f3 {[%emt 0:00:15]} 0-1